lending/lending_fUSD_20241120
["ID","MTS","AMOUNT","RATE_DAILY","PERIOD"]
[342736059,1732090303280,-500.0,0.00056164,120]
[342736060,1732090303290,-500.0,0.00056164,120]
[342736061,1732090303304,-500.0,0.00056164,120]
[342736062,1732090303313,-500.0,0.00056164,120]
[342736063,1732090303322,-500.0,0.00056164,120]
[342736064,1732090303331,-500.0,0.00056164,120]
[342736065,1732090303341,-569.0,0.00056164,120]
[342736066,1732090303350,-500.0,0.00056164,120]
[342736067,1732090303359,-500.0,0.00056164,120]
[342736068,1732090303369,-500.0,0.00056164,120]
[342736069,1732090303379,-502.27953917,0.00056164,120]
[342736070,1732090303389,-500.0,0.00056164,120]
[342736071,1732090303398,-500.0,0.00056164,120]
[342736072,1732090303407,-362.13231624,0.00056164,120]
[342736073,1732090303416,-2068.02,0.00056164,120]
[342736074,1732090303425,-700.75,0.00056164,120]
[342736075,1732090303434,-500.0,0.00056164,120]
[342736076,1732090303443,-500.0,0.00056164,120]
[342736077,1732090303452,-798.52,0.00056164,120]
[342736078,1732090303461,-1516.88,0.00056164,120]
[342736079,1732090303470,-500.0,0.00056164,120]
[342736080,1732090303480,-1000.0,0.00056164,120]
[342736081,1732090303489,-500.0,0.00056164,120]
[342736082,1732090303498,-982.26,0.00056164,120]
[342736083,1732090303507,-500.0,0.00056164,120]
[342736084,1732090303519,-500.0,0.00056164,120]
[342736085,1732090303529,-500.0,0.00056164,120]
[342736086,1732090303538,-500.0,0.00056164,120]
[342736087,1732090303547,-500.0,0.00056164,120]
[342736088,1732090303555,-572.74654179,0.00056164,120]
[342736089,1732090303564,-623.68374875,0.00056164,120]
[342736090,1732090303574,-650.76,0.00056164,21]
[342736091,1732090303583,-500.0,0.00056164,120]
[342736092,1732090303592,-190.29876858,0.00056164,120]
[342736093,1732090303601,-500.0,0.00056164,120]
[342736094,1732090303610,-500.0,0.00056164,120]
[342736095,1732090303619,-500.0,0.00056164,120]
[342736096,1732090303629,-500.0,0.00056164,30]
[342736097,1732090303638,-998.06,0.00056164,120]
[342736098,1732090303647,-500.0,0.00056164,120]
[342736099,1732090303657,-500.0,0.00056164,120]
[342736100,1732090303666,-500.0,0.00056164,120]
[342736101,1732090303675,-2581.57,0.00056164,120]
[342736102,1732090303685,-500.0,0.00056164,120]
[342736103,1732090303695,-500.0,0.00056164,120]
[342736104,1732090303704,-219.81110601,0.00056164,120]
[342736105,1732090303714,-635.36,0.00056164,120]
[342736106,1732090303723,-500.0,0.00056164,120]
[342736107,1732090303732,-500.0,0.00056164,120]
[342736108,1732090303742,-500.0,0.00056164,120]
[342736109,1732090303751,-500.0,0.00056164,120]
[342736110,1732090303760,-500.0,0.00056164,120]
[342736111,1732090303772,-500.0,0.00056164,120]
[342736112,1732090303782,-3061.68,0.00056164,120]
[342736113,1732090303791,-500.0,0.00056164,120]
[342736114,1732090303801,-336.13324528,0.00056164,120]
[342736115,1732090303811,-2031.6,0.00056164,120]
[342736116,1732090303819,-500.0,0.00056164,120]
[342736117,1732090303829,-500.0,0.00056164,120]
[342736118,1732090303838,-500.0,0.00056164,120]
[342736119,1732090303847,-502.66490691,0.00056164,120]
[342736120,1732090303856,-500.0,0.00056164,120]
[342736121,1732090303865,-3206.56,0.00056164,120]
[342736122,1732090303875,-500.0,0.00056164,120]
[342736123,1732090303884,-711.44,0.00056164,120]
[342736124,1732090303893,-500.0,0.00056164,120]
[342736125,1732090303903,-500.0,0.00056164,120]
[342736126,1732090303913,-500.0,0.00056164,120]
[342736127,1732090303922,-633.47874333,0.00056164,120]
[342736128,1732090303931,-521.59831777,0.00056164,120]
[342736129,1732090303941,-501.50977411,0.00056164,120]
[342736130,1732090303950,-500.0,0.00056164,120]
[342736131,1732090303959,-500.0,0.00056164,120]
[342736132,1732090303968,-641.26179343,0.00056164,120]
[342736133,1732090303978,-504.34516403,0.00056164,120]
[342736134,1732090303987,-729.82,0.00056164,120]
[342736135,1732090303996,-5192.93,0.00056164,120]
[342736136,1732090304006,-564.59743499,0.00056164,120]
[342736137,1732090304018,-500.0,0.00056164,120]
[342736138,1732090304028,-500.0,0.00056164,120]
[342736139,1732090304038,-500.0,0.00056164,120]
[342736140,1732090304047,-518.94286285,0.00056164,120]
[342736141,1732090304057,-500.0,0.00056164,120]
[342736142,1732090304066,-500.0,0.00056164,120]
[342736143,1732090304076,-500.0,0.00056164,120]
[342736144,1732090304085,-500.0,0.00056164,120]
[342736145,1732090304094,-523.75734332,0.00056164,120]
[342736146,1732090304103,-500.0,0.00056164,120]
[342736147,1732090304113,-500.0,0.00056164,120]
[342736148,1732090304123,-500.0,0.00056164,120]
[342736149,1732090304132,-500.0,0.00056164,120]
[342736150,1732090304142,-500.0,0.00056164,120]
[342736151,1732090304151,-500.0,0.00056164,120]
[342736152,1732090304160,-500.0,0.00056164,120]
[342736153,1732090304169,-500.0,0.00056164,120]
[342736154,1732090304179,-500.0,0.00056164,20]
[342736155,1732090304188,-500.0,0.00056164,120]
[342736156,1732090304197,-500.0,0.00056164,120]
[342736157,1732090304206,-500.0,0.00056164,120]
[342736158,1732090304215,-500.0,0.00056164,120]
[342736159,1732090304225,-500.0,0.00056164,120]
[342736160,1732090304234,-707.74,0.00056164,120]
[342736161,1732090304243,-500.0,0.00056164,120]
[342736162,1732090304252,-647.87,0.00056164,120]
[342736163,1732090304262,-500.0,0.00056164,120]
[342736164,1732090304273,-510.12416958,0.00056164,120]
[342736165,1732090304282,-500.0,0.00056164,120]
[342736166,1732090304292,-500.0,0.00056164,120]
[342736167,1732090304306,-500.0,0.00056164,120]
[342736168,1732090304315,-720.2,0.00056164,120]
[342736169,1732090304324,-500.0,0.00056164,120]
[342736170,1732090304333,-500.0,0.00056164,120]
[342736171,1732090304344,-500.0,0.00056164,120]
[342736172,1732090304353,-500.0,0.00056164,120]
[342736173,1732090304362,-717.59,0.00056164,120]
[342736174,1732090304372,-1703.66,0.00056164,120]
[342736175,1732090304381,-500.0,0.00056164,120]
[342736176,1732090304390,-508.31,0.00056164,120]
[342736177,1732090304399,-500.0,0.00056164,120]
[342736178,1732090304408,-500.0,0.00056164,120]
[342736179,1732090304417,-616.68380194,0.00056164,120]
[342736180,1732090304425,-500.0,0.00056164,120]
[342736181,1732090304434,-500.0,0.00056164,120]
[342736182,1732090304444,-500.0,0.00056164,120]
[342736183,1732090304452,-500.0,0.00056164,120]
[342736184,1732090304462,-500.0,0.00056164,120]
[342736185,1732090304471,-500.0,0.00056164,120]
[342736186,1732090304480,-500.0,0.00056164,120]
[342736187,1732090304490,-2604.2,0.00056164,120]
[342736188,1732090304499,-500.0,0.00056164,120]
[342736189,1732090304508,-2810.53,0.00056164,120]
[342736190,1732090304519,-500.0,0.00056164,120]
[342736191,1732090304529,-500.0,0.00056164,120]
[342736192,1732090304538,-500.0,0.00056164,120]
[342736193,1732090304547,-2080.78,0.00056164,120]
[342736194,1732090304556,-199.79788832,0.00056164,120]
[342736195,1732090304566,-500.0,0.00056164,120]
[342736196,1732090304575,-500.22,0.00056164,120]
[342736197,1732090304584,-500.0,0.00056164,120]
[342736198,1732090304592,-505.89737399,0.00056164,120]
[342736199,1732090304602,-1137.2,0.00056164,3]
[342736200,1732090304611,-306.81672869,0.00056164,120]
[342736201,1732090304620,-642.24,0.00056164,30]
[342736202,1732090304628,-509.91830126,0.00056164,120]
[342736203,1732090304637,-1301.4,0.00056164,120]
[342736204,1732090304646,-500.0,0.00056164,120]
[342736205,1732090304655,-500.0,0.00056164,120]
[342736206,1732090304664,-500.0,0.00056164,120]
[342736207,1732090304673,-500.0,0.00056164,120]
[342736208,1732090304683,-505.72,0.00056164,120]
[342736209,1732090304692,-500.0,0.00056164,120]
[342736210,1732090304703,-500.0,0.00056164,120]
[342736211,1732090304712,-500.0,0.00056164,120]
[342736212,1732090304722,-500.0,0.00056164,120]
[342736213,1732090304731,-500.0,0.00056164,120]
[342736214,1732090304741,-500.0,0.00056164,120]
[342736215,1732090304751,-500.0,0.00056164,120]
[342736216,1732090304760,-500.0,0.00056164,120]
[342736217,1732090304772,-946.93,0.00056164,120]
[342736218,1732090304781,-500.0,0.00056164,120]
[342736219,1732090304791,-500.0,0.00056164,120]
[342736220,1732090304800,-500.0,0.00056164,120]
[342736221,1732090304809,-500.0,0.00056164,120]
[342736222,1732090304819,-667.95,0.00056164,120]
[342736223,1732090304827,-500.0,0.00056164,120]
[342736224,1732090304837,-500.0,0.00056164,120]
[342736225,1732090304848,-500.0,0.00056164,120]
[342736226,1732090304858,-500.0,0.00056164,120]
[342736227,1732090304869,-500.0,0.00056164,120]
[342736228,1732090304880,-530.04717173,0.00056164,120]
[342736229,1732090304890,-500.0,0.00056164,120]
[342736230,1732090304899,-500.0,0.00056164,120]
[342736231,1732090304910,-557.64683072,0.00056164,120]
[342736232,1732090304920,-500.0,0.00056164,120]
[342736233,1732090304930,-508.65763889,0.00056164,120]
[342736234,1732090304939,-500.0,0.00056164,120]
[342736235,1732090304949,-500.0,0.00056164,120]
[342736236,1732090304958,-500.0,0.00056164,120]
[342736237,1732090304967,-500.0,0.00056164,120]
[342736238,1732090304976,-500.0,0.00056164,120]
[342736239,1732090304987,-538.96786543,0.00056164,120]
[342736240,1732090304997,-500.0,0.00056164,120]
[342736241,1732090305007,-852.9,0.00056164,120]
[342736242,1732090305018,-500.0,0.00056164,120]
[342736243,1732090305027,-500.0,0.00056164,120]
[342736244,1732090305036,-500.0,0.00056164,120]
[342736245,1732090305046,-604.92798571,0.00056164,120]
[342736246,1732090305056,-400.0,0.00056437,120]
[342736247,1732090305065,-400.0,0.00056437,120]
[342736248,1732090305074,-400.0,0.00056437,120]
[342736249,1732090305083,-400.0,0.00056437,120]
[342736250,1732090305092,-500.0,0.00056438,120]
[342736251,1732090305100,-500.0,0.00056438,120]
[342736252,1732090305109,-643.53017735,0.00056438,120]
[342736253,1732090305118,-583.63,0.00056438,120]
[342736254,1732090305128,-500.0,0.00056438,120]
[342736255,1732090305137,-500.0,0.00056438,120]
[342736256,1732090305146,-218.29605231,0.00056438,120]
[342736257,1732090305155,-1068.5,0.00056438,120]
[342736258,1732090305163,-598.94,0.00056438,120]
[342736259,1732090305172,-1682.29,0.00056438,120]
[342736260,1732090305181,-500.0,0.00056438,120]
[342736261,1732090305191,-530.55341807,0.00056438,120]
[342736262,1732090305199,-500.0,0.00056438,120]
[342736263,1732090305208,-500.0,0.00056438,120]
[342736264,1732090305217,-12247.35,0.00056438,120]
[342736265,1732090305226,-1420.1,0.00056438,120]
[342736266,1732090305235,-500.0,0.00056438,120]
[342736267,1732090305243,-1292.82,0.00056438,120]
[342736268,1732090305252,-500.0,0.00056438,120]
[342736269,1732090305261,-500.0,0.00056438,120]
[342736270,1732090305272,-500.0,0.00056438,120]
[342736271,1732090305281,-1329.44,0.00056438,120]
[342736272,1732090305291,-1265.92,0.00056438,120]
[342736273,1732090305448,-500.0,0.00056438,120]
[342736274,1732090305457,-500.0,0.00056438,120]
[342736275,1732090305466,-1607.8,0.00056438,120]
[342736276,1732090305475,-500.0,0.00056438,120]
[342736277,1732090305484,-500.0,0.00056438,120]
[342736278,1732090305493,-506.32,0.00056438,120]
[342736279,1732090305502,-1376.52,0.00056438,120]
[342736280,1732090305511,-500.0,0.00056438,120]
[342736281,1732090305522,-500.0,0.00056438,120]
[342736282,1732090305531,-742.7,0.00056438,20]
[342736283,1732090305540,-843.95,0.00056438,120]
[342736284,1732090305549,-500.0,0.00056438,120]
[342736285,1732090305558,-500.0,0.00056438,120]
[342736286,1732090305567,-500.0,0.00056438,120]
[342736287,1732090305576,-500.0,0.00056438,120]
[342736288,1732090305586,-500.0,0.00056438,120]
[342736289,1732090305597,-500.0,0.00056438,120]
[342736290,1732090305606,-500.0,0.00056438,120]
[342736291,1732090305616,-500.0,0.00056438,120]
[342736292,1732090305627,-500.0,0.00056438,120]
[342736293,1732090305636,-500.0,0.00056438,120]
[342736294,1732090305645,-500.0,0.00056438,120]
[342736295,1732090305654,-500.0,0.00056438,120]
[342736296,1732090305663,-1244.57,0.00056438,120]
[342736297,1732090305672,-500.0,0.00056438,120]
[342736298,1732090305681,-1316.06,0.00056438,120]
[342736299,1732090305690,-500.0,0.00056438,120]
[342736300,1732090305699,-500.0,0.00056438,120]
[342736301,1732090305708,-553.01,0.00056438,120]
[342736302,1732090305718,-500.0,0.00056438,120]
[342736303,1732090305728,-721.45,0.00056438,120]
[342736304,1732090305737,-506.18,0.00056438,120]
[342736305,1732090305747,-2365.65,0.00056438,120]
[342736306,1732090305756,-500.0,0.00056438,120]
[342736307,1732090305766,-500.0,0.00056438,120]
[342736308,1732090305778,-500.0,0.00056438,120]
[342736309,1732090305787,-500.0,0.00056438,120]
[342736310,1732090305796,-526.18,0.00056438,120]
[342736311,1732090305805,-500.0,0.00056438,120]
[342736312,1732090305815,-500.0,0.00056438,120]
[342736313,1732090305824,-1140.86,0.00056438,120]
[342736314,1732090305833,-1206.39,0.00056438,120]
[342736315,1732090305843,-500.0,0.00056438,120]
[342736316,1732090305852,-851.18,0.00056438,120]
[342736317,1732090305861,-214.0,0.00056438,120]
[342736318,1732090305871,-811.24,0.00056438,21]
[342736319,1732090305879,-500.0,0.00056438,120]
[342736320,1732090305888,-500.0,0.00056438,120]
[342736321,1732090305898,-377.64,0.00056438,120]
[342736322,1732090305908,-627.76,0.00056438,120]
[342736323,1732090305917,-500.0,0.00056438,120]
[342736324,1732090305926,-500.0,0.00056438,120]
[342736325,1732090305935,-500.0,0.00056438,120]
[342736326,1732090305944,-447.0,0.00056438,120]
[342736327,1732090305953,-500.0,0.00056438,120]
[342736328,1732090305962,-500.0,0.00056438,120]
[342736329,1732090305972,-500.0,0.00056438,120]
[342736330,1732090305981,-500.0,0.00056438,120]
[342736331,1732090305990,-215.10106394,0.00056438,120]
[342736332,1732090305999,-500.0,0.00056438,120]
[342736333,1732090306008,-500.0,0.00056438,120]
[342736334,1732090306021,-571.04,0.00056438,120]
[342736335,1732090306032,-500.0,0.00056438,120]
[342736336,1732090306042,-500.0,0.00056438,120]
[342736337,1732090306051,-500.0,0.00056438,120]
[342736338,1732090306060,-500.0,0.00056438,120]
[342736339,1732090306069,-500.0,0.00056438,120]
[342736340,1732090306079,-500.0,0.00056438,120]
[342736341,1732090306089,-500.0,0.00056438,120]
[342736342,1732090306099,-1177.91,0.00056438,120]
[342736343,1732090306108,-500.0,0.00056438,120]
[342736344,1732090306117,-500.0,0.00056438,120]
[342736345,1732090306126,-3911.81,0.00056438,120]
[342736346,1732090306136,-500.0,0.00056438,120]
[342736347,1732090306146,-518.28,0.00056438,120]
[342736348,1732090306156,-7513.0,0.00056438,3]
[342736349,1732090306166,-500.0,0.00056438,120]
[342736350,1732090306175,-553.92,0.00056438,120]
[342736351,1732090306184,-500.0,0.00056438,120]
[342736352,1732090306195,-810.73,0.00056438,120]
[342736353,1732090306204,-500.0,0.00056438,120]
[342736354,1732090306214,-500.0,0.00056438,120]
[342736355,1732090306223,-500.0,0.00056438,120]
[342736356,1732090306232,-618.5,0.00056438,120]
[342736357,1732090306241,-500.0,0.00056438,120]
[342736358,1732090306250,-500.0,0.00056438,120]
[342736359,1732090306259,-500.0,0.00056438,120]
[342736360,1732090306271,-500.0,0.00056438,120]
[342736361,1732090306280,-500.0,0.00056438,120]
[342736362,1732090306290,-500.0,0.00056438,120]
[342736363,1732090306304,-256.04,0.00056438,120]
[342736364,1732090306314,-500.0,0.00056438,21]
[342736365,1732090306323,-500.0,0.00056438,120]
[342736366,1732090306333,-500.0,0.00056438,120]
[342736367,1732090306342,-531.91,0.00056438,60]
[342736368,1732090306351,-500.0,0.00056438,120]
[342736369,1732090306360,-500.0,0.00056438,120]
[342736370,1732090306371,-500.0,0.00056438,120]
[342736371,1732090306380,-500.0,0.00056438,120]
[342736372,1732090306390,-703.55,0.00056438,120]
[342736373,1732090306399,-500.0,0.00056438,120]
[342736374,1732090306408,-500.0,0.00056438,120]
[342736375,1732090306417,-578.53,0.00056438,120]
[342736376,1732090306427,-500.0,0.00056438,120]
[342736377,1732090306436,-500.0,0.00056438,60]
[342736378,1732090306445,-500.0,0.00056438,120]
[342736379,1732090306465,-500.0,0.00056438,120]
[342736380,1732090306482,-500.0,0.00056438,120]
[342736381,1732090306500,-500.0,0.00056438,120]
[342736382,1732090306521,-500.0,0.00056438,120]
[342736383,1732090306537,-1133.36,0.00056438,120]
[342736384,1732090306556,-500.0,0.00056438,120]
[342736385,1732090306576,-500.0,0.00056438,120]
[342736386,1732090306593,-646.34,0.00056438,7]
[342736387,1732090306612,-500.0,0.00056438,120]
[342736388,1732090306631,-500.0,0.00056438,120]
[342736389,1732090306649,-500.0,0.00056438,120]
[342736390,1732090306662,-489.5159562,0.00056438,120]
[342736391,1732090306680,-500.0,0.00056438,120]
[342736392,1732090306694,-500.0,0.00056438,120]
[342736393,1732090306713,-1092.33,0.00056438,120]
[342736394,1732090306729,-500.0,0.00056438,120]
[342736395,1732090306744,-449.0683078,0.00056438,120]
[342736396,1732090306760,-500.0,0.00056438,120]
[342736397,1732090306776,-500.0,0.00056438,120]
[342736398,1732090306791,-500.0,0.00056438,120]
[342736399,1732090306806,-576.16,0.00056438,120]
[342736400,1732090306821,-452.36,0.00056438,120]
[342736401,1732090306837,-500.0,0.00056438,120]
[342736402,1732090306852,-642.09,0.00056438,3]
[342736403,1732090306867,-1126.69,0.00056438,120]
[342736404,1732090306883,-500.0,0.00056438,120]
[342736405,1732090306897,-705.53,0.00056438,120]
[342736406,1732090306912,-500.0,0.00056438,120]
[342736407,1732090306927,-500.0,0.00056438,120]
[342736408,1732090306942,-1013.55,0.00056438,120]
[342736409,1732090306960,-500.0,0.00056438,120]
[342736410,1732090306975,-500.0,0.00056438,120]
[342736411,1732090306990,-1520.14,0.00056438,120]
[342736412,1732090307005,-500.0,0.00056438,120]
[342736413,1732090307022,-394.18087893,0.00056438,120]
[342736414,1732090307037,-500.0,0.00056438,120]
[342736415,1732090307053,-500.0,0.00056438,60]
[342736416,1732090307067,-162.72,0.00056438,120]
[342736417,1732090307081,-500.0,0.00056438,120]
[342736418,1732090307096,-500.0,0.00056438,120]
[342736419,1732090307110,-500.0,0.00056438,120]
[342736420,1732090307123,-500.0,0.00056438,21]
[342736421,1732090307137,-500.0,0.00056438,120]
[342736422,1732090307151,-466.3834799,0.00056438,120]
[342736423,1732090307164,-2168.51,0.00056438,120]
[342736424,1732090307179,-500.0,0.00056438,120]
[342736425,1732090307192,-500.0,0.00056438,120]
[342736426,1732090307205,-500.0,0.00056438,120]
[342736427,1732090307220,-500.0,0.00056438,120]
[342736428,1732090307233,-222.87,0.00056438,120]
[342736429,1732090307247,-500.0,0.00056438,120]
[342736430,1732090307262,-536.45,0.00056438,120]
[342736431,1732090307277,-500.0,0.00056438,120]
[342736432,1732090307291,-500.0,0.00056438,120]
[342736433,1732090307309,-500.0,0.00056438,120]
[342736434,1732090307323,-500.0,0.00056438,120]
[342736435,1732090307336,-500.0,0.00056438,120]
[342736436,1732090307350,-500.0,0.00056438,120]
[342736437,1732090307364,-500.0,0.00056438,120]
[342736438,1732090307378,-594.32,0.00056438,120]
[342736439,1732090307393,-500.0,0.00056438,120]
[342736440,1732090307407,-500.0,0.00056438,120]
[342736441,1732090307421,-500.0,0.00056438,120]
[342736442,1732090307434,-709.11,0.00056438,120]
[342736443,1732090307448,-511.99,0.00056438,120]
[342736444,1732090307462,-500.0,0.00056438,120]
[342736445,1732090307475,-500.0,0.00056438,120]
[342736446,1732090307491,-702.33,0.00056438,120]
[342736447,1732090307505,-500.0,0.00056438,120]
[342736448,1732090307519,-632.95,0.00056438,120]
[342736449,1732090307534,-500.0,0.00056438,120]
[342736450,1732090307547,-500.0,0.00056438,120]
[342736451,1732090307561,-500.0,0.00056438,120]
[342736452,1732090307575,-500.0,0.00056438,120]
[342736453,1732090307588,-500.0,0.00056438,120]
[342736454,1732090307602,-500.0,0.00056438,120]
[342736455,1732090307616,-500.0,0.00056438,120]
[342736456,1732090307630,-500.0,0.00056438,120]
[342736457,1732090307643,-500.0,0.00056438,120]
[342736458,1732090307657,-500.0,0.00056438,120]
[342736459,1732090307673,-500.0,0.00056438,120]
[342736460,1732090307687,-500.0,0.00056438,120]
[342736461,1732090307702,-500.0,0.00056438,120]
[342736462,1732090307716,-500.0,0.00056438,120]
[342736463,1732090307730,-797.68,0.00056438,120]
[342736464,1732090307744,-500.0,0.00056438,120]
[342736465,1732090307758,-500.0,0.00056438,120]
[342736466,1732090307772,-500.0,0.00056438,120]
[342736467,1732090307786,-500.0,0.00056438,120]
[342736468,1732090307800,-500.0,0.00056438,120]
[342736469,1732090307817,-500.0,0.00056438,120]
[342736470,1732090307830,-500.0,0.00056438,120]
[342736471,1732090307845,-502.9586242,0.00056438,120]
[342736472,1732090307860,-500.0,0.00056438,120]
[342736473,1732090307874,-500.0,0.00056438,120]
[342736474,1732090307889,-500.0,0.00056438,120]
[342736475,1732090307903,-500.0,0.00056438,120]
[342736476,1732090307918,-500.0,0.00056438,120]
[342736477,1732090307932,-261.54031968,0.00056438,120]
[342736478,1732090307947,-500.0,0.00056438,120]
[342736479,1732090307961,-500.0,0.00056438,120]
[342736480,1732090307974,-500.0,0.00056438,120]
[342736481,1732090307989,-500.0,0.00056438,120]
[342736482,1732090308003,-500.0,0.00056438,120]
[342736483,1732090308018,-500.0,0.00056438,120]
[342736484,1732090308033,-503.11805312,0.00056438,120]
[342736485,1732090308273,-500.0,0.00056438,120]
[342736486,1732090308283,-500.0,0.00056438,120]
[342736487,1732090308293,-500.0,0.00056438,120]
[342736488,1732090308307,-500.0,0.00056438,120]
[342736489,1732090308316,-500.0,0.00056438,120]
[342736490,1732090308326,-500.0,0.00056438,120]
[342736491,1732090308335,-500.0,0.00056438,120]
[342736492,1732090308345,-500.0,0.00056438,120]
[342736493,1732090308355,-500.0,0.00056438,120]
[342736494,1732090308364,-500.0,0.00056438,120]
[342736495,1732090308375,-317.58,0.00056438,120]
[342736496,1732090308390,-500.0,0.00056438,120]
[342736497,1732090308399,-500.0,0.00056438,120]
[342736498,1732090308408,-500.0,0.00056438,120]
[342736499,1732090308418,-500.0,0.00056438,120]
[342736500,1732090308428,-150.0,0.00056438,120]
[342736501,1732090308438,-500.0,0.00056438,120]
[342736502,1732090308447,-500.0,0.00056438,120]
[342736503,1732090308456,-267.20471155,0.00056438,120]
[342736504,1732090308466,-500.0,0.00056438,120]
[342736505,1732090308475,-500.0,0.00056438,120]
[342736506,1732090308484,-500.0,0.00056438,120]
[342736507,1732090308493,-500.0,0.00056438,120]
[342736508,1732090308502,-500.0,0.00056438,120]
[342736509,1732090308511,-500.0,0.00056438,120]
[342736510,1732090308522,-500.0,0.00056438,120]
[342736511,1732090308532,-500.0,0.00056438,120]
[342736512,1732090308541,-500.0,0.00056438,120]
[342736513,1732090308550,-500.0,0.00056438,120]
[342736514,1732090308559,-500.0,0.00056438,120]
[342736515,1732090308569,-514.31,0.00056438,120]
[342736516,1732090308579,-500.0,0.00056438,120]
[342736517,1732090308588,-500.0,0.00056438,120]
[342736518,1732090308598,-500.0,0.00056438,120]
[342736519,1732090308607,-500.0,0.00056438,120]
[342736520,1732090308617,-500.0,0.00056438,120]
[342736521,1732090308626,-231.04999778,0.00056438,120]
[342736522,1732090308636,-500.0,0.00056438,120]
[342736523,1732090308646,-500.0,0.00056438,120]
[342736524,1732090308655,-500.0,0.00056438,120]
[342736525,1732090308664,-500.0,0.00056438,120]
[342736526,1732090308674,-500.0,0.00056438,120]
[342736527,1732090308683,-849.65,0.00056438,120]
[342736528,1732090308693,-500.0,0.00056438,120]
[342736529,1732090308702,-500.0,0.00056438,120]
[342736530,1732090308712,-500.0,0.00056438,120]
[342736531,1732090308721,-500.0,0.00056438,120]
[342736532,1732090308731,-500.0,0.00056438,120]
[342736533,1732090308741,-500.0,0.00056438,120]
[342736534,1732090308750,-569.0,0.00056438,120]
[342736535,1732090308760,-500.0,0.00056438,120]
[342736536,1732090308769,-500.0,0.00056438,120]
[342736537,1732090308780,-500.0,0.00056438,120]
[342736538,1732090308790,-500.0,0.00056438,120]
[342736539,1732090308799,-2068.02,0.00056438,120]
[342736540,1732090308808,-700.75,0.00056438,120]
[342736541,1732090308818,-500.0,0.00056438,120]
[342736542,1732090308827,-500.0,0.00056438,120]
[342736543,1732090308837,-798.52,0.00056438,120]
[342736544,1732090308847,-1516.88,0.00056438,120]
[342736545,1732090308856,-1000.0,0.00056438,120]
[342736546,1732090308866,-544.13549751,0.00056438,120]
[342736547,1732090308875,-500.0,0.00056438,120]
[342736548,1732090308885,-982.26,0.00056438,120]
[342736549,1732090308895,-500.0,0.00056438,120]
[342736550,1732090308905,-500.0,0.00056438,120]
[342736551,1732090308914,-500.0,0.00056438,120]
[342736552,1732090308924,-500.0,0.00056438,120]
[342736553,1732090308934,-500.0,0.00056438,120]
[342736554,1732090308944,-650.76,0.00056438,21]
[342736555,1732090308953,-500.0,0.00056438,120]
[342736556,1732090308962,-500.0,0.00056438,120]
[342736557,1732090308972,-500.0,0.00056438,120]
[342736558,1732090308982,-500.0,0.00056438,120]